[Event "Early-Titled-Tuesday-Blitz-May-07-2024"]
[Site "Chess.com"]
[Date "2024.05.07"]
[Round "10"]
[White "SharapovEvgeny"]
[Black "Airquake"]
[Result "1/2-1/2"]
[WhiteElo "2653"]
[BlackElo "2807"]
[TimeControl "180+1"]
[EndTime "10:02:39 PDT"]
[Termination "Game drawn by repetition"]

1. e4 {[%clk 0:02:59.8]} 1... c5 {[%clk 0:03:00.4]} 2. Nf3 {[%clk 0:02:59.7]}
2... d6 {[%clk 0:03:01]} 3. d4 {[%clk 0:02:59.3]} 3... cxd4 {[%clk 0:03:01.9]}
4. Nxd4 {[%clk 0:02:59.6]} 4... Nf6 {[%clk 0:03:02.2]} 5. f3 {[%clk 0:03:00.2]}
5... a6 {[%clk 0:03:00]} 6. c4 {[%clk 0:02:59.8]} 6... g6 {[%clk 0:02:57.4]} 7.
Nc3 {[%clk 0:02:59.8]} 7... Bg7 {[%clk 0:02:58]} 8. Be2 {[%clk 0:03:00.1]} 8...
Nc6 {[%clk 0:02:55.9]} 9. Be3 {[%clk 0:03:00]} 9... Bd7 {[%clk 0:02:53.5]} 10.
O-O {[%clk 0:02:59.4]} 10... O-O {[%clk 0:02:51.4]} 11. Qd2 {[%clk 0:02:58.7]}
11... Rc8 {[%clk 0:02:51.2]} 12. Rac1 {[%clk 0:02:57.7]} 12... h5 {[%clk
0:02:29.7]} 13. Nd5 {[%clk 0:02:56.4]} 13... Nxd5 {[%clk 0:02:16.5]} 14. exd5
{[%clk 0:02:52.7]} 14... Nxd4 {[%clk 0:01:55.3]} 15. Bxd4 {[%clk 0:02:52.4]}
15... Bxd4+ {[%clk 0:01:50.9]} 16. Qxd4 {[%clk 0:02:51.9]} 16... Qa5 {[%clk
0:01:51.6]} 17. a3 {[%clk 0:02:46.9]} 17... Qc5 {[%clk 0:01:51.7]} 18. Qxc5
{[%clk 0:02:46.7]} 18... Rxc5 {[%clk 0:01:52.6]} 19. b4 {[%clk 0:02:45.2]} 19...
Rc7 {[%clk 0:01:52.7]} 20. Rc3 {[%clk 0:02:37.6]} 20... Rfc8 {[%clk 0:01:50.1]}
21. Rfc1 {[%clk 0:02:36.8]} 21... e6 {[%clk 0:01:40.1]} 22. dxe6 {[%clk
0:02:35.5]} 22... Bxe6 {[%clk 0:01:40.3]} 23. Kf2 {[%clk 0:02:31.8]} 23... a5
{[%clk 0:01:09.5]} 24. Ke3 {[%clk 0:02:26.5]} 24... axb4 {[%clk 0:01:08.4]} 25.
axb4 {[%clk 0:02:25.3]} 25... Ra8 {[%clk 0:01:07.8]} 26. c5 {[%clk 0:02:17.2]}
26... dxc5 {[%clk 0:01:03.2]} 27. Rxc5 {[%clk 0:02:15.8]} 27... Re7 {[%clk
0:01:02]} 28. Rc7 {[%clk 0:01:54.6]} 28... Ree8 {[%clk 0:00:45.2]} 29. Kf2
{[%clk 0:01:50.4]} 29... Bf5 {[%clk 0:00:34]} 30. Bc4 {[%clk 0:01:37.3]} 30...
Be6 {[%clk 0:00:34]} 31. Bxe6 {[%clk 0:01:28.8]} 31... Rxe6 {[%clk 0:00:34.9]}
32. Rc8+ {[%clk 0:01:24.6]} 32... Rxc8 {[%clk 0:00:34.3]} 33. Rxc8+ {[%clk
0:01:23.9]} 33... Kg7 {[%clk 0:00:35.2]} 34. Rc7 {[%clk 0:01:22]} 34... Rb6
{[%clk 0:00:33.7]} 35. Rc4 {[%clk 0:01:21.8]} 35... Kf6 {[%clk 0:00:34.1]} 36.
Ke3 {[%clk 0:01:21.9]} 36... Ke5 {[%clk 0:00:33.2]} 37. f4+ {[%clk 0:01:19.3]}
37... Kf5 {[%clk 0:00:31]} 38. Rc5+ {[%clk 0:01:17.2]} 38... Kg4 {[%clk
0:00:30.4]} 39. Rg5+ {[%clk 0:01:09.8]} 39... Kh4 {[%clk 0:00:30.3]} 40. b5
{[%clk 0:01:03.9]} 40... Re6+ {[%clk 0:00:21.1]} 41. Kf3 {[%clk 0:01:02.5]}
41... Rd6 {[%clk 0:00:13.9]} 42. Rc5 {[%clk 0:00:52.6]} 42... Rd3+ {[%clk
0:00:11]} 43. Kf2 {[%clk 0:00:52.6]} 43... Rd7 {[%clk 0:00:08.2]} 44. h3 {[%clk
0:00:48.9]} 44... Rd2+ {[%clk 0:00:04.9]} 45. Kf3 {[%clk 0:00:49.1]} 45... Rd3+
{[%clk 0:00:04]} 46. Ke2 {[%clk 0:00:46.8]} 46... Rd7 {[%clk 0:00:03.9]} 47. Kf2
{[%clk 0:00:40.1]} 47... Rd2+ {[%clk 0:00:03.7]} 48. Kf3 {[%clk 0:00:40.1]}
48... Rd3+ {[%clk 0:00:04.3]} 49. Kf2 {[%clk 0:00:39.8]} 49... Rd2+ {[%clk
0:00:04.7]} 1/2-1/2

[Event "Early-Titled-Tuesday-Blitz-May-07-2024"]
[Site "Chess.com"]
[Date "2024.05.07"]
[Round "10"]
[White "NikitaShnadrygin"]
[Black "WilsonPalencia21"]
[Result "1-0"]
[WhiteElo "2700"]
[BlackElo "2539"]
[TimeControl "180+1"]
[EndTime "10:02:41 PDT"]
[Termination "NikitaShnadrygin won on time"]

1. Nf3 {[%clk 0:03:00.9]} 1... c5 {[%clk 0:02:48.6]} 2. g3 {[%clk 0:03:00.4]}
2... g6 {[%clk 0:02:48.8]} 3. d4 {[%clk 0:03:00.9]} 3... Bg7 {[%clk 0:02:49.7]}
4. Bg2 {[%clk 0:03:00.2]} 4... Nf6 {[%clk 0:02:49.6]} 5. O-O {[%clk 0:03:00]}
5... O-O {[%clk 0:02:49.8]} 6. c4 {[%clk 0:03:00.1]} 6... d6 {[%clk 0:02:49.8]}
7. Nc3 {[%clk 0:03:00.2]} 7... Nc6 {[%clk 0:02:49.5]} 8. e3 {[%clk 0:02:56.1]}
8... Bg4 {[%clk 0:02:48.2]} 9. h3 {[%clk 0:02:55.4]} 9... Bd7 {[%clk 0:02:47.6]}
10. b3 {[%clk 0:02:54.1]} 10... Qc8 {[%clk 0:02:37.1]} 11. Kh1 {[%clk
0:02:50.8]} 11... Bxh3 {[%clk 0:02:36.2]} 12. Bb2 {[%clk 0:02:50.4]} 12... Bxg2+
{[%clk 0:02:35.1]} 13. Kxg2 {[%clk 0:02:50.4]} 13... cxd4 {[%clk 0:02:28.3]} 14.
exd4 {[%clk 0:02:50.5]} 14... e5 {[%clk 0:02:24.1]} 15. Nb5 {[%clk 0:02:38.9]}
15... e4 {[%clk 0:02:20.6]} 16. Nd2 {[%clk 0:02:38.2]} 16... Rd8 {[%clk
0:01:55.8]} 17. d5 {[%clk 0:02:37.9]} 17... a6 {[%clk 0:01:46.1]} 18. Bxf6
{[%clk 0:02:12.4]} 18... Bxf6 {[%clk 0:01:45.6]} 19. Nxe4 {[%clk 0:01:49.4]}
19... Be5 {[%clk 0:01:14.7]} 20. Nbc3 {[%clk 0:01:17]} 20... Ne7 {[%clk
0:00:53.4]} 21. Rc1 {[%clk 0:01:11.3]} 21... Qf5 {[%clk 0:00:43]} 22. Qd2 {[%clk
0:00:49]} 22... h5 {[%clk 0:00:33.2]} 23. Rce1 {[%clk 0:00:33.3]} 23... h4
{[%clk 0:00:19.7]} 24. f4 {[%clk 0:00:32.9]} 24... Bg7 {[%clk 0:00:16]} 25. Nxd6
{[%clk 0:00:21.1]} 25... Rxd6 {[%clk 0:00:13.3]} 26. Rxe7 {[%clk 0:00:21]} 26...
hxg3 {[%clk 0:00:13.1]} 27. Ne4 {[%clk 0:00:17.8]} 27... Rdd8 {[%clk 0:00:12]}
28. Nxg3 {[%clk 0:00:17.8]} 28... Qg4 {[%clk 0:00:11.8]} 29. f5 {[%clk
0:00:15.2]} 29... Bf6 {[%clk 0:00:12]} 30. Re4 {[%clk 0:00:14.8]} 30... Qg5
{[%clk 0:00:11.7]} 31. Qxg5 {[%clk 0:00:14.6]} 31... Bxg5 {[%clk 0:00:12.3]} 32.
fxg6 {[%clk 0:00:15.5]} 32... f6 {[%clk 0:00:11.7]} 33. Nf5 {[%clk 0:00:15]}
33... Re8 {[%clk 0:00:12.3]} 34. Rfe1 {[%clk 0:00:15.1]} 34... Rxe4 {[%clk
0:00:12.4]} 35. Rxe4 {[%clk 0:00:16]} 35... b5 {[%clk 0:00:13]} 36. c5 {[%clk
0:00:16.1]} 36... Rd8 {[%clk 0:00:08]} 37. d6 {[%clk 0:00:16.2]} 1-0

[Event "Early-Titled-Tuesday-Blitz-May-07-2024"]
[Site "Chess.com"]
[Date "2024.05.07"]
[Round "10"]
[White "ClauSanLuis"]
[Black "Nf3c5"]
[Result "0-1"]
[WhiteElo "2432"]
[BlackElo "2606"]
[TimeControl "180+1"]
[EndTime "10:02:42 PDT"]
[Termination "Nf3c5 won by resignation"]

1. d4 {[%clk 0:03:00.9]} 1... Nf6 {[%clk 0:02:53.3]} 2. Bg5 {[%clk 0:03:00.1]}
2... Ne4 {[%clk 0:02:50.2]} 3. Bf4 {[%clk 0:02:59.9]} 3... c5 {[%clk 0:02:47.4]}
4. f3 {[%clk 0:02:57.5]} 4... Nf6 {[%clk 0:02:43.8]} 5. d5 {[%clk 0:02:52.9]}
5... Qb6 {[%clk 0:02:32]} 6. Bc1 {[%clk 0:02:28.6]} 6... g6 {[%clk 0:02:27]} 7.
e4 {[%clk 0:02:27.6]} 7... d6 {[%clk 0:02:27.2]} 8. Nd2 {[%clk 0:02:23.4]} 8...
Bg7 {[%clk 0:02:26.7]} 9. Nc4 {[%clk 0:02:22.4]} 9... Qd8 {[%clk 0:02:15.5]} 10.
a4 {[%clk 0:02:21.8]} 10... O-O {[%clk 0:02:13.6]} 11. Ne2 {[%clk 0:02:21.5]}
11... b6 {[%clk 0:02:06.4]} 12. Nc3 {[%clk 0:02:21.1]} 12... Ba6 {[%clk
0:02:06.7]} 13. Be2 {[%clk 0:02:21]} 13... Bxc4 {[%clk 0:02:06.3]} 14. Bxc4
{[%clk 0:02:19.8]} 14... a6 {[%clk 0:02:02.8]} 15. O-O {[%clk 0:02:18.8]} 15...
Nbd7 {[%clk 0:02:01.1]} 16. Kh1 {[%clk 0:02:17.6]} 16... Ne8 {[%clk 0:01:52.6]}
17. f4 {[%clk 0:02:08.8]} 17... Nc7 {[%clk 0:01:50.3]} 18. Qe2 {[%clk
0:02:00.1]} 18... e6 {[%clk 0:01:40.4]} 19. dxe6 {[%clk 0:01:55.1]} 19... Nxe6
{[%clk 0:01:35.8]} 20. Nd5 {[%clk 0:01:45.7]} 20... Nd4 {[%clk 0:01:27]} 21. Qf2
{[%clk 0:01:44.9]} 21... b5 {[%clk 0:01:25.4]} 22. Bd3 {[%clk 0:01:38]} 22... c4
{[%clk 0:01:20.8]} 23. Be3 {[%clk 0:01:32.5]} 23... Ne6 {[%clk 0:00:54.2]} 24.
Be2 {[%clk 0:01:31]} 24... Nec5 {[%clk 0:00:53.3]} 25. Bf3 {[%clk 0:01:24.6]}
25... Rb8 {[%clk 0:00:53.3]} 26. axb5 {[%clk 0:01:24.3]} 26... axb5 {[%clk
0:00:53]} 27. c3 {[%clk 0:01:21.6]} 27... Re8 {[%clk 0:00:52.8]} 28. f5 {[%clk
0:01:21.2]} 28... Nd3 {[%clk 0:00:38.8]} 29. Qg3 {[%clk 0:01:18]} 29... N3e5
{[%clk 0:00:30.4]} 30. Be2 {[%clk 0:01:15.4]} 30... Nf6 {[%clk 0:00:20.5]} 31.
Bg5 {[%clk 0:01:10.3]} 31... Nxe4 {[%clk 0:00:20.1]} 32. Bxd8 {[%clk 0:01:06.6]}
32... Nxg3+ {[%clk 0:00:20.5]} 33. hxg3 {[%clk 0:01:07.5]} 33... Rbxd8 {[%clk
0:00:21]} 34. f6 {[%clk 0:01:04.5]} 34... Bh6 {[%clk 0:00:20.6]} 35. Nc7 {[%clk
0:01:02.7]} 35... Rf8 {[%clk 0:00:19.9]} 36. Nxb5 {[%clk 0:01:02.6]} 36... Be3
{[%clk 0:00:18.1]} 37. Rad1 {[%clk 0:01:01]} 37... d5 {[%clk 0:00:17.3]} 38. Bf3
{[%clk 0:00:58.3]} 38... Nd3 {[%clk 0:00:15.8]} 39. b3 {[%clk 0:00:55.5]} 39...
Nf2+ {[%clk 0:00:15.5]} 40. Rxf2 {[%clk 0:00:55.5]} 40... Bxf2 {[%clk
0:00:16.3]} 41. Bxd5 {[%clk 0:00:49.9]} 41... cxb3 {[%clk 0:00:16.6]} 42. Bxb3
{[%clk 0:00:49.2]} 42... Rxd1+ {[%clk 0:00:15.8]} 43. Bxd1 {[%clk 0:00:50.1]}
43... Bxg3 {[%clk 0:00:16.5]} 44. Be2 {[%clk 0:00:47.1]} 44... Re8 {[%clk
0:00:16.4]} 45. Nd4 {[%clk 0:00:45.8]} 45... Bf2 {[%clk 0:00:16.9]} 46. Bb5
{[%clk 0:00:43.7]} 46... Re1+ {[%clk 0:00:15]} 47. Kh2 {[%clk 0:00:44.6]} 47...
Bxd4 {[%clk 0:00:15.5]} 48. cxd4 {[%clk 0:00:44.4]} 48... Rd1 {[%clk 0:00:16.2]}
0-1

[Event "Early-Titled-Tuesday-Blitz-May-07-2024"]
[Site "Chess.com"]
[Date "2024.05.07"]
[Round "10"]
[White "Eloist"]
[Black "Felix-Rose"]
[Result "1-0"]
[WhiteElo "2386"]
[BlackElo "2200"]
[TimeControl "180+1"]
[EndTime "10:02:42 PDT"]
[Termination "Eloist won on time"]

1. e4 {[%clk 0:03:00.9]} 1... e5 {[%clk 0:02:55.4]} 2. Nf3 {[%clk 0:02:58.5]}
2... Nc6 {[%clk 0:02:55.7]} 3. Bc4 {[%clk 0:02:58]} 3... Nf6 {[%clk 0:02:55.7]}
4. d3 {[%clk 0:02:57.9]} 4... Bc5 {[%clk 0:02:55.6]} 5. O-O {[%clk 0:02:57.1]}
5... d6 {[%clk 0:02:55.7]} 6. c3 {[%clk 0:02:57.2]} 6... a5 {[%clk 0:02:55.7]}
7. Nbd2 {[%clk 0:02:53.4]} 7... Ba7 {[%clk 0:02:55]} 8. h3 {[%clk 0:02:49.7]}
8... O-O {[%clk 0:02:49.7]} 9. Re1 {[%clk 0:02:49.6]} 9... Be6 {[%clk
0:02:49.6]} 10. Bb5 {[%clk 0:02:45.7]} 10... Ne7 {[%clk 0:02:44.1]} 11. d4
{[%clk 0:02:40]} 11... Ng6 {[%clk 0:02:42.4]} 12. Bd3 {[%clk 0:02:34]} 12... h6
{[%clk 0:02:36.8]} 13. Nf1 {[%clk 0:02:31.8]} 13... Re8 {[%clk 0:02:35.5]} 14.
Ng3 {[%clk 0:02:31.1]} 14... c6 {[%clk 0:02:35.3]} 15. Be3 {[%clk 0:02:25.6]}
15... a4 {[%clk 0:02:20]} 16. Qd2 {[%clk 0:02:21.8]} 16... a3 {[%clk 0:02:08]}
17. b4 {[%clk 0:02:18.5]} 17... Kh7 {[%clk 0:01:45.2]} 18. Nf5 {[%clk
0:02:15.3]} 18... Ng8 {[%clk 0:01:39.2]} 19. c4 {[%clk 0:02:05.8]} 19... exd4
{[%clk 0:01:23.5]} 20. N3xd4 {[%clk 0:02:02.5]} 20... Bd7 {[%clk 0:01:15.2]} 21.
Nxd6 {[%clk 0:02:00.5]} 21... Re6 {[%clk 0:00:58.6]} 22. Nxe6 {[%clk 0:01:58.4]}
22... Bxe6 {[%clk 0:00:58.2]} 23. Nxb7 {[%clk 0:01:48.8]} 23... Qh4 {[%clk
0:00:52.7]} 24. c5 {[%clk 0:01:30.8]} 24... Bxh3 {[%clk 0:00:48]} 25. gxh3
{[%clk 0:01:23.2]} 25... Qxh3 {[%clk 0:00:48.3]} 26. f4 {[%clk 0:00:55.3]} 26...
Nh4 {[%clk 0:00:45.9]} 27. e5+ {[%clk 0:00:54.9]} 27... g6 {[%clk 0:00:45.2]}
28. Be4 {[%clk 0:00:52.7]} 28... Ne7 {[%clk 0:00:14.9]} 29. Nd6 {[%clk
0:00:45.4]} 29... Rd8 {[%clk 0:00:14]} 30. Bg2 {[%clk 0:00:41.2]} 30... Qg4
{[%clk 0:00:08.2]} 31. Qe2 {[%clk 0:00:39.1]} 31... Qg3 {[%clk 0:00:04.4]} 32.
Qf2 {[%clk 0:00:37.4]} 32... Qg4 {[%clk 0:00:04.3]} 33. Kh2 {[%clk 0:00:35.8]}
33... Rxd6 {[%clk 0:00:03.7]} 34. exd6 {[%clk 0:00:34.3]} 34... Nef5 {[%clk
0:00:04.6]} 35. Bh3 {[%clk 0:00:33.7]} 35... Qh5 {[%clk 0:00:04.1]} 36. Rf1
{[%clk 0:00:30.6]} 36... Nxe3 {[%clk 0:00:01.3]} 37. Qxe3 {[%clk 0:00:29.9]}
37... Nf5 {[%clk 0:00:02.2]} 38. Qf3 {[%clk 0:00:29.1]} 38... Bb8 {[%clk
0:00:02.6]} 39. Qxh5 {[%clk 0:00:28.5]} 1-0

[Event "Early-Titled-Tuesday-Blitz-May-07-2024"]
[Site "Chess.com"]
[Date "2024.05.07"]
[Round "10"]
[White "ChessQueen"]
[Black "FoggyMorning"]
[Result "0-1"]
[WhiteElo "2792"]
[BlackElo "2651"]
[TimeControl "180+1"]
[EndTime "10:02:44 PDT"]
[Termination "FoggyMorning won by resignation"]

1. e4 {[%clk 0:03:00.9]} 1... e6 {[%clk 0:02:59.6]} 2. d4 {[%clk 0:03:00.8]}
2... d5 {[%clk 0:02:59.8]} 3. exd5 {[%clk 0:03:01.4]} 3... exd5 {[%clk
0:02:59.5]} 4. Nf3 {[%clk 0:03:02.1]} 4... Bd6 {[%clk 0:02:59]} 5. c4 {[%clk
0:03:02.3]} 5... Nf6 {[%clk 0:02:59.3]} 6. c5 {[%clk 0:03:01.6]} 6... Be7 {[%clk
0:02:59.9]} 7. Bd3 {[%clk 0:03:01.2]} 7... O-O {[%clk 0:02:59.4]} 8. O-O {[%clk
0:03:01.3]} 8... b6 {[%clk 0:02:59.5]} 9. Be3 {[%clk 0:02:47.2]} 9... Bg4 {[%clk
0:02:39.2]} 10. Nbd2 {[%clk 0:02:46.1]} 10... bxc5 {[%clk 0:02:24.9]} 11. dxc5
{[%clk 0:02:45.1]} 11... Nc6 {[%clk 0:02:25.5]} 12. h3 {[%clk 0:02:37.4]} 12...
Bh5 {[%clk 0:02:25.7]} 13. Qa4 {[%clk 0:02:33]} 13... d4 {[%clk 0:02:05.6]} 14.
Bg5 {[%clk 0:02:22.4]} 14... Nd5 {[%clk 0:01:43.7]} 15. Qxc6 {[%clk 0:02:08.9]}
15... Bxg5 {[%clk 0:01:43.5]} 16. Be4 {[%clk 0:02:08.7]} 16... Bxd2 {[%clk
0:01:32.4]} 17. Nxd2 {[%clk 0:01:58.4]} 17... Nf4 {[%clk 0:01:15.6]} 18. Nf3
{[%clk 0:01:32]} 18... Rb8 {[%clk 0:01:08.4]} 19. Rab1 {[%clk 0:01:28.9]} 19...
Re8 {[%clk 0:01:01.8]} 20. Bf5 {[%clk 0:01:06.4]} 20... Bxf3 {[%clk 0:00:51.2]}
21. Qxf3 {[%clk 0:01:04.3]} 21... Qg5 {[%clk 0:00:51.8]} 22. Bd7 {[%clk
0:00:47.8]} 22... Re5 {[%clk 0:00:35]} 23. c6 {[%clk 0:00:43.6]} 23... Qf6
{[%clk 0:00:31.3]} 24. Rfe1 {[%clk 0:00:38.9]} 24... Rbb5 {[%clk 0:00:25]} 25.
a4 {[%clk 0:00:37.5]} 25... Rbc5 {[%clk 0:00:24.9]} 26. b4 {[%clk 0:00:35.6]}
26... Rc3 {[%clk 0:00:25]} 27. Rxe5 {[%clk 0:00:30.4]} 27... Qxe5 {[%clk
0:00:25.9]} 28. Qg4 {[%clk 0:00:28.2]} 28... d3 {[%clk 0:00:16.5]} 29. g3 {[%clk
0:00:25.5]} 29... Ne2+ {[%clk 0:00:14.8]} 30. Kh2 {[%clk 0:00:25.2]} 30... h5
{[%clk 0:00:14.3]} 31. Qh4 {[%clk 0:00:23.2]} 31... Nd4 {[%clk 0:00:12.5]} 32.
Qd8+ {[%clk 0:00:19.2]} 32... Kh7 {[%clk 0:00:13]} 33. Rd1 {[%clk 0:00:17.9]}
33... Rc2 {[%clk 0:00:12.7]} 34. Rf1 {[%clk 0:00:14.3]} 34... d2 {[%clk
0:00:10.1]} 35. Rd1 {[%clk 0:00:05.5]} 35... Qe2 {[%clk 0:00:07.2]} 36. Bf5+
{[%clk 0:00:04.7]} 36... Nxf5 {[%clk 0:00:07.5]} 0-1

[Event "Early-Titled-Tuesday-Blitz-May-07-2024"]
[Site "Chess.com"]
[Date "2024.05.07"]
[Round "10"]
[White "Shield12"]
[Black "AttilaTurzo"]
[Result "0-1"]
[WhiteElo "2935"]
[BlackElo "2482"]
[TimeControl "180+1"]
[EndTime "10:02:45 PDT"]
[Termination "AttilaTurzo won by resignation"]

1. b3 {[%clk 0:03:00.9]} 1... d5 {[%clk 0:02:59.2]} 2. Bb2 {[%clk 0:03:01.7]}
2... c6 {[%clk 0:02:59.3]} 3. g3 {[%clk 0:03:01]} 3... Bf5 {[%clk 0:02:57.8]} 4.
Bg2 {[%clk 0:03:01.3]} 4... Nd7 {[%clk 0:02:57]} 5. d3 {[%clk 0:03:02.2]} 5...
Ngf6 {[%clk 0:02:55.5]} 6. Nd2 {[%clk 0:03:02.8]} 6... e5 {[%clk 0:02:53.9]} 7.
e4 {[%clk 0:03:02.8]} 7... dxe4 {[%clk 0:02:53.4]} 8. dxe4 {[%clk 0:03:02.7]}
8... Be6 {[%clk 0:02:50.3]} 9. Ngf3 {[%clk 0:02:56.7]} 9... Bg4 {[%clk
0:02:50.2]} 10. h3 {[%clk 0:02:55.6]} 10... Bxf3 {[%clk 0:02:50]} 11. Nxf3
{[%clk 0:02:55.5]} 11... Qc7 {[%clk 0:02:49.2]} 12. O-O {[%clk 0:02:54.9]} 12...
Bc5 {[%clk 0:02:46.7]} 13. Qe2 {[%clk 0:02:53.5]} 13... O-O {[%clk 0:02:46.6]}
14. Rad1 {[%clk 0:02:52.9]} 14... a5 {[%clk 0:02:46.8]} 15. a3 {[%clk 0:02:52]}
15... b5 {[%clk 0:02:41.6]} 16. Kh2 {[%clk 0:02:51.3]} 16... Rfe8 {[%clk
0:02:22.7]} 17. Nh4 {[%clk 0:02:50.7]} 17... Nf8 {[%clk 0:02:17]} 18. f4 {[%clk
0:02:48.4]} 18... exf4 {[%clk 0:02:15.5]} 19. gxf4 {[%clk 0:02:47.8]} 19... Ng6
{[%clk 0:02:09.7]} 20. Nxg6 {[%clk 0:02:46.3]} 20... hxg6 {[%clk 0:02:08.7]} 21.
e5 {[%clk 0:02:39.1]} 21... Nd5 {[%clk 0:01:43.6]} 22. Bxd5 {[%clk 0:02:31.7]}
22... cxd5 {[%clk 0:01:44]} 23. Rxd5 {[%clk 0:02:32.5]} 23... b4 {[%clk
0:01:38.9]} 24. a4 {[%clk 0:02:28.7]} 24... Rac8 {[%clk 0:01:33.5]} 25. Rfd1
{[%clk 0:02:18]} 25... Qb6 {[%clk 0:01:02.5]} 26. R1d3 {[%clk 0:02:11]} 26...
Rc6 {[%clk 0:00:52.7]} 27. Kg2 {[%clk 0:02:04.8]} 27... Rec8 {[%clk 0:00:51.4]}
28. c4 {[%clk 0:01:55.2]} 28... bxc3 {[%clk 0:00:47.8]} 29. Bxc3 {[%clk
0:01:55.2]} 29... Qxb3 {[%clk 0:00:40]} 30. Bxa5 {[%clk 0:01:50.6]} 30... Qxa4
{[%clk 0:00:39]} 31. Bd2 {[%clk 0:01:50.5]} 31... Bf8 {[%clk 0:00:30.9]} 32. h4
{[%clk 0:01:43.4]} 32... Qa8 {[%clk 0:00:30.6]} 33. Kh3 {[%clk 0:01:41.4]} 33...
Rc2 {[%clk 0:00:30.4]} 34. e6 {[%clk 0:01:40.4]} 34... Re8 {[%clk 0:00:22.5]}
35. exf7+ {[%clk 0:01:24.3]} 35... Kxf7 {[%clk 0:00:23.4]} 36. Qg2 {[%clk
0:01:22.6]} 36... Qc8+ {[%clk 0:00:22.2]} 37. Rd7+ {[%clk 0:01:19.3]} 37... Re7
{[%clk 0:00:19.5]} 38. f5 {[%clk 0:01:11.7]} 38... Rxd7 {[%clk 0:00:17.5]} 39.
Qxg6+ {[%clk 0:01:09.5]} 39... Kg8 {[%clk 0:00:15.4]} 40. Qe6+ {[%clk
0:00:49.1]} 40... Rf7 {[%clk 0:00:15.3]} 41. Kg4 {[%clk 0:00:43.1]} 41... Rc4+
{[%clk 0:00:13.7]} 42. Kg3 {[%clk 0:00:38.4]} 42... Qxe6 {[%clk 0:00:12.7]} 43.
fxe6 {[%clk 0:00:38.3]} 43... Re7 {[%clk 0:00:13.1]} 44. Rd6 {[%clk 0:00:34.7]}
44... Re4 {[%clk 0:00:11.9]} 45. Rd8 {[%clk 0:00:32.7]} 45... R7xe6 {[%clk
0:00:11.5]} 46. Kf3 {[%clk 0:00:31.8]} 46... Re8 {[%clk 0:00:10.9]} 47. Rd5
{[%clk 0:00:31]} 47... Rxh4 {[%clk 0:00:10.4]} 0-1

[Event "Early-Titled-Tuesday-Blitz-May-07-2024"]
[Site "Chess.com"]
[Date "2024.05.07"]
[Round "10"]
[White "francyIM"]
[Black "Thjop"]
[Result "0-1"]
[WhiteElo "2787"]
[BlackElo "2630"]
[TimeControl "180+1"]
[EndTime "10:02:47 PDT"]
[Termination "Thjop won by resignation"]

1. e4 {[%clk 0:03:00.9]} 1... e6 {[%clk 0:02:54.4]} 2. d4 {[%clk 0:02:57.3]}
2... d5 {[%clk 0:02:54.6]} 3. Nc3 {[%clk 0:02:55.5]} 3... Bb4 {[%clk 0:02:54.2]}
4. e5 {[%clk 0:02:52.5]} 4... c5 {[%clk 0:02:54]} 5. a3 {[%clk 0:02:48.5]} 5...
Bxc3+ {[%clk 0:02:54]} 6. bxc3 {[%clk 0:02:49.4]} 6... Qa5 {[%clk 0:02:53.9]} 7.
Bd2 {[%clk 0:02:42.1]} 7... Qa4 {[%clk 0:02:54]} 8. Nf3 {[%clk 0:02:39.6]} 8...
Ne7 {[%clk 0:02:53.6]} 9. h4 {[%clk 0:02:39.9]} 9... b6 {[%clk 0:02:53.7]} 10.
h5 {[%clk 0:02:40.4]} 10... h6 {[%clk 0:02:54.1]} 11. Bd3 {[%clk 0:02:36.9]}
11... Ba6 {[%clk 0:02:53.6]} 12. Qb1 {[%clk 0:02:34.1]} 12... Bxd3 {[%clk
0:02:38.9]} 13. cxd3 {[%clk 0:02:33.4]} 13... Nd7 {[%clk 0:02:37.8]} 14. Rh4
{[%clk 0:02:32.2]} 14... c4 {[%clk 0:02:36.8]} 15. Qb4 {[%clk 0:02:26.7]} 15...
Qxb4 {[%clk 0:02:27.9]} 16. axb4 {[%clk 0:02:25.7]} 16... cxd3 {[%clk 0:02:27]}
17. Kd1 {[%clk 0:02:24.1]} 17... a5 {[%clk 0:02:18.5]} 18. Ne1 {[%clk
0:02:22.4]} 18... O-O {[%clk 0:01:32.2]} 19. b5 {[%clk 0:02:22.1]} 19... f6
{[%clk 0:01:15.9]} 20. exf6 {[%clk 0:02:19]} 20... Nxf6 {[%clk 0:01:01.1]} 21.
f3 {[%clk 0:02:17.9]} 21... Nf5 {[%clk 0:00:58]} 22. Rh3 {[%clk 0:02:16.9]}
22... Nd6 {[%clk 0:00:57.7]} 23. Rb1 {[%clk 0:02:14.8]} 23... a4 {[%clk
0:00:46.7]} 24. Bf4 {[%clk 0:02:14.9]} 24... Nfe4 {[%clk 0:00:36.7]} 25. Nxd3
{[%clk 0:02:04.1]} 25... Rxf4 {[%clk 0:00:31.6]} 26. Nxf4 {[%clk 0:02:03.4]}
26... Nxc3+ {[%clk 0:00:31.7]} 27. Kc2 {[%clk 0:02:03.8]} 27... Nxb1 {[%clk
0:00:31.3]} 28. Kxb1 {[%clk 0:02:04.7]} 28... Kf7 {[%clk 0:00:29.1]} 29. Ng6
{[%clk 0:01:59.7]} 29... Nxb5 {[%clk 0:00:28]} 30. Rh4 {[%clk 0:01:59.5]} 30...
Ke8 {[%clk 0:00:17.4]} 31. Rf4 {[%clk 0:01:59.1]} 31... Kd7 {[%clk 0:00:15.1]}
32. Ka2 {[%clk 0:01:40.3]} 32... Kd6 {[%clk 0:00:10.9]} 33. g3 {[%clk
0:01:36.7]} 33... Ra7 {[%clk 0:00:10.6]} 34. Kb2 {[%clk 0:01:31.7]} 34... a3+
{[%clk 0:00:06.3]} 35. Ka2 {[%clk 0:01:32.2]} 35... Nc3+ {[%clk 0:00:06.8]} 36.
Ka1 {[%clk 0:01:32.4]} 36... a2 {[%clk 0:00:06.4]} 37. Ne5 {[%clk 0:01:31.3]}
37... Ne2 {[%clk 0:00:04.3]} 38. Rg4 {[%clk 0:01:25.7]} 38... Nxd4 {[%clk
0:00:04.3]} 39. Rxd4 {[%clk 0:01:25.7]} 39... Kxe5 {[%clk 0:00:04.6]} 40. Rb4
{[%clk 0:01:26.6]} 40... Ra6 {[%clk 0:00:04.4]} 41. f4+ {[%clk 0:01:23.9]} 41...
Kf5 {[%clk 0:00:04.7]} 42. Rb3 {[%clk 0:01:22.3]} 42... e5 {[%clk 0:00:04.2]}
43. Rb5 {[%clk 0:01:20.4]} 43... Ke4 {[%clk 0:00:03.7]} 44. fxe5 {[%clk
0:01:18.5]} 44... Kxe5 {[%clk 0:00:04.6]} 45. Rb2 {[%clk 0:01:15]} 45... Ke4
{[%clk 0:00:04.8]} 46. Rf2 {[%clk 0:01:13.3]} 46... d4 {[%clk 0:00:05]} 47. Rf7
{[%clk 0:01:13.6]} 47... d3 {[%clk 0:00:02.4]} 48. Rxg7 {[%clk 0:01:13]} 48...
d2 {[%clk 0:00:02.4]} 49. Re7+ {[%clk 0:01:13.1]} 49... Kd3 {[%clk 0:00:02.7]}
50. Rd7+ {[%clk 0:01:13.6]} 50... Ke2 {[%clk 0:00:03.3]} 51. Re7+ {[%clk
0:01:14.1]} 51... Kd1 {[%clk 0:00:02]} 52. Re6 {[%clk 0:01:13.8]} 52... Ra5
{[%clk 0:00:01.7]} 53. Rxh6 {[%clk 0:01:12.5]} 53... Kc2 {[%clk 0:00:02.2]} 54.
Rc6+ {[%clk 0:01:09.2]} 54... Rc5 {[%clk 0:00:01.9]} 55. Rd6 {[%clk 0:01:08.5]}
55... d1=Q+ {[%clk 0:00:02.5]} 56. Rxd1 {[%clk 0:01:08.7]} 56... Kxd1 {[%clk
0:00:03.1]} 57. g4 {[%clk 0:01:09.6]} 57... Rg5 {[%clk 0:00:03.4]} 58. h6 {[%clk
0:01:09.7]} 58... Rxg4 {[%clk 0:00:04.3]} 59. h7 {[%clk 0:01:09.9]} 59... Rh4
{[%clk 0:00:05.2]} 60. h8=Q {[%clk 0:01:10.7]} 60... Rxh8 {[%clk 0:00:05.6]} 61.
Kxa2 {[%clk 0:01:11.4]} 61... Rh2+ {[%clk 0:00:06.5]} 62. Kb3 {[%clk 0:01:12.3]}
62... Rh5 {[%clk 0:00:06.9]} 0-1